Cogmind - Beta 10.2 --- EXPLORER MODE // 2021.10.22 @ 20:41:39 Player: MSK Impostr Result: Self-destructed Performance ------------- Evolutions (1) 500 Regions Visited (2) 400 Robots Destroyed (15) 75 Value Destroyed (410) 410 Prototype IDs (0) 0 Alien Tech Used (0) 0 Bonus (0) 0 TOTAL SCORE: 1385 Bonus ------- None Cogmind --------- Core Integrity 310/400 Matter 263/300 Energy 100/100 System Corruption 0% Temperature Cool (27) Movement Walking (120) Location -9/Materials Parts ------- > --- POWER (1) -------- (None) > --- PROPULSION (2) --- Aluminum Leg Aluminum Leg > --- UTILITY (5) ------ Medium Storage Unit Visual Processing Unit Transport Network Coupler Utility Shielding Light Armor Plating > --- WEAPON (2) ------- Light Assault Rifle Light Assault Rifle > --- INVENTORY (8) ---- Ion Engine Improved Ion Engine Light Treads Light Treads Wheel Compact Wheel Weight Redist. System Peak State ------------ > --- POWER ------------ Light Ion Engine > --- PROPULSION ------- Aluminum Leg Aluminum Leg > --- UTILITY ---------- Medium Storage Unit Visual Processing Unit Transport Network Coupler Utility Shielding Light Armor Plating > --- WEAPON ----------- Light Assault Rifle Light Assault Rifle > --- INVENTORY -------- Ion Engine Improved Ion Engine Light Treads Light Treads Wheel Compact Wheel Weight Redist. System Light Armor Plating [Rating: 12] Favorites ----------- Power Ion Engine Engine Ion Engine Propulsion Aluminum Leg Leg Aluminum Leg Utility Light Armor Plating Storage Medium Storage Unit Processor Visual Processing Unit Protection Light Armor Plating Weapon Light Assault Rifle Energy Gun Small Laser Ballistic Gun Light Assault Rifle Build | -11 -10 -9 ------- Run | Scr Mat Mat Slots Evolved 3 | . 1 2 Power . | . . . Propulsion . | . . . Utility 3 | . 1 2 Weapon . | . . . Parts Attached 17 | 8 2 7 Power 4 | 2 . 2 Engine 4 | 2 . 2 Core . | . . . Reactor . | . . . Propulsion 2 | 2 . . Treads . | . . . Leg 2 | 2 . . Wheel . | . . . Hover . | . . . Flight . | . . . Utility 8 | 2 1 5 Device . | . . . Storage 2 | 1 . 1 Processor 2 | . 1 1 Hackware . | . . . Protection 4 | 1 . 3 Artifact . | . . . Weapon 3 | 2 1 . Energy Gun 1 | 1 . . Energy Cannon . | . . . Ballistic Gun 2 | 1 1 . Ballistic Cannon . | . . . Launcher . | . . . Special Weapon . | . . . Impact Weapon . | . . . Slashing Weapon . | . . . Piercing Weapon . | . . . Special Melee Weapon . | . . . Unidentified Prototypes . | . . . Parts Lost 2 | . . 2 Power 1 | . . 1 Propulsion . | . . . Utility 1 | . . 1 Weapon . | . . . Highest Loss Streak 1 | . . 1 Average Slot Usage (%) 93 | . 93 93 Engine 10 | . 12 9 Leg 21 | . 25 20 Storage 10 | . 12 10 Processor 12 | . 8 13 Protection 17 | . 12 19 Energy Gun 2 | . 7 . Ballistic Gun 18 | . 13 20 Naked Turns . | . . . Heaviest Build 19 | 18 18 19 Greatest Support 20 | 20 20 20 Greatest Overweight (x) 5 | 5 . . Average Overweight (x) . | . . . Largest Inventory Capacity 12 | 8 8 12 Average Capacity 7 | 7 8 8 Most Carried 8 | 3 4 8 Average Carried 4 | 1 3 6 Final Capacity 8 | 8 8 8 Final Carried 7 | 3 4 7 Class Distribution -------------------- 100% | Hacker-Mutant Dominant Class ---------------- Hacker-Mutant | -10/Materials Hacker-Mutant | -9/Materials Resources | -11 -10 -9 ----------- Run | Scr Mat Mat Matter Collected 405 | 142 161 102 Remotely . | . . . Salvage Created 587 | . 207 380 Parts 30 | . 8 22 Haulers Intercepted 1 | . . 1 Recyclers Shooed 2 | . . 2 Parts Field Recycled . | . . . Retrieved Matter . | . . . Parts Self-Destructed . | . . . Prevented . | . . . Kills | -11 -10 -9 ------- Run | Scr Mat Mat Combat Hostiles Destroyed 12 | . 4 8 Guns 12 | . 4 8 Classes Destroyed 6 | . 2 4 Hauler 1 | . . 1 Recycler 1 | . . 1 Watcher 1 | . 1 . Swarmer 3 | . . 3 Grunt 8 | . 4 4 Sentry 1 | . . 1 Best Kill Streak 4 | . 4 3 Combat Bots Only 4 | . 4 3 Max Kills in Single Turn 1 | . 1 1 Gunslinging . | . . . Exploded . | . . . Melee . | . . . Uniques/NPCs Destroyed . | . . . Combat | -11 -10 -9 -------- Run | Scr Mat Mat Damage Taken 655 | . 137 518 Core 150 | . 60 90 Absorbed by Shields . | . . . Core Remaining (%) 88 | 100 76 . Volleys Fired 45 | . 13 32 Largest 2 | . 2 2 Hottest 60 | . 60 40 Shots Fired 90 | . 26 64 Gun 90 | . 26 64 Cannon . | . . . Launcher . | . . . Special . | . . . Kinetic 77 | . 13 64 Thermal 13 | . 13 . Explosive . | . . . Electromagnetic . | . . . Robot Hit Streak 33 | . 22 33 Robot Miss Streak 1 | . . 1 Penetration Max . | . . . Secondary Targets . | . . . Shots Hit Robots 77 | . 22 55 Core Hits 32 | . 13 19 Critical Hits 1 | . . 1 Critical Kills . | . . . Critical Parts Destroyed . | . . . Melee Attacks . | . . . Impact . | . . . Slashing . | . . . Piercing . | . . . Sneak Attacks . | . . . Combat Hostiles . | . . . Follow-up Attacks . | . . . Damage Inflicted 639 | . 218 421 Guns 639 | . 218 421 Cannons . | . . . Explosions . | . . . Melee . | . . . Ramming . | . . . Kinetic 496 | . 75 421 Thermal 143 | . 143 . Explosive . | . . . Electromagnetic . | . . . Impact . | . . . Slashing . | . . . Piercing . | . . . Highest Corruption 1 | . 1 . Average Corruption 1 | . 1 . Corruption Purged . | . . . Overload Shots . | . . . Overflow Damage . | . . . Projectiles . | . . . Explosions . | . . . Melee . | . . . Knockbacks . | . . . Impact . | . . . Kinetic . | . . . Secondary . | . . . Self-Inflicted Damage . | . . . Shots . | . . . Rammed . | . . . Targets Rammed . | . . . Kicked . | . . . Crushed . | . . . Highest Temperature 222 | . 222 12 Average Temperature 69 | . 96 6 Received Heat Transfer 519 | . 129 390 Siege Activations . | . . . Robots Corrupted . | . . . Combat Hostiles . | . . . Parts Fried . | . . . Impact Corruptions . | . . . Robots Melted . | . . . Combat Hostiles . | . . . Parts Melted . | . . . Heat Transferred 325 | . 325 . Parts Sabotaged . | . . . Parts Stolen . | . . . Parts Stripped . | . . . Power Chain Reactions . | . . . Missiles Intercepted . | . . . Alert | -11 -10 -9 ------- Run | Scr Mat Mat Peak Influence 239 | . 159 239 Initial 47 | . . 47 Average 87 | . 79 107 Maximum Alert Level 1 | . . 1 Low Security (%) 90 | 100 100 85 Level 1 9 | . . 14 Level 2 . | . . . Level 3 . | . . . Level 4 . | . . . Level 5 . | . . . High Security . | . . . Max Security . | . . . Squads Dispatched 3 | . 1 2 Investigation 2 | . 1 1 Extermination . | . . . Reinforcement 1 | . . 1 Assault . | . . . Garrison . | . . . Intercept . | . . . Construction Impeded . | . . . Haulers Reinforced . | . . . Stealth | -11 -10 -9 --------- Run | Scr Mat Mat Distress Signals 3 | . 1 2 Communications Jammed . | . . . Distress Signals . | . . . Times Spotted 30 | . 10 20 Peak Tracking Total 11 | . 5 11 Tactical Retreats 3 | . . 3 Traps | -11 -10 -9 ------- Run | Scr Mat Mat Traps Triggered . | . . . Indirectly . | . . . Trap Hack Attempts . | . . . Triggered . | . . . Disarmed . | . . . Reprogrammed . | . . . Reused . | . . . Traps Extracted . | . . . Installed . | . . . Triggered . | . . . Machines | -11 -10 -9 ---------- Run | Scr Mat Mat Machines Disabled . | . . . Max in Single Turn . | . . . Machines Sabotaged . | . . . Garrisons Compromised . | . . . Overloaded Fab Kills . | . . . Fab Network Shutdowns . | . . . Hacking | -11 -10 -9 --------- Run | Scr Mat Mat Machines Accessed 6 | . 3 3 Terminals 6 | . 3 3 Fabricators . | . . . Repair Stations . | . . . Recycling Units . | . . . Scanalyzers . | . . . Garrison Access . | . . . Total Hacks 20 | . 13 7 Successful 10 | . 7 3 Failed 10 | . 6 4 Catastrophic 2 | . . 2 Database Lockouts . | . . . Manual 16 | . 9 7 Terminals 20 | . 13 7 Fabricators . | . . . Repair Stations . | . . . Recycling Units . | . . . Scanalyzers . | . . . Garrison Access . | . . . Terminal Hacks 3 | . 3 . Branch Access Points 1 | . 1 . Emergency Access Points 1 | . 1 . Zone Layout 1 | . 1 . Fabricator Hacks . | . . . Repair Station Hacks . | . . . Recycling Unit Hacks . | . . . Scanalyzer . | . . . Garrison Access Hacks . | . . . Unauthorized Hacks 7 | . 4 3 Terminals 7 | . 4 3 Track 3 | . 2 1 Botnet 4 | . 2 2 Fabricators . | . . . Repair Stations . | . . . Recycling Units . | . . . Scanalyzers . | . . . Garrison Access . | . . . Data Cores Recovered . | . . . Used . | . . . Hacking Detections 6 | . 3 3 Full Trace Events 2 | . 1 1 Feedback Events 1 | . 1 . Corruption 1 | . 1 . Feedback Blocked . | . . . Robot Schematics Acquired . | . . . Robots Built . | . . . Matter . | . . . Time . | . . . Total Robot Build Rating . | . . . Part Schematics Acquired . | . . . Parts Built . | . . . Matter . | . . . Time . | . . . Total Part Build Rating . | . . . Parts Repaired . | . . . Time . | . . . Parts Recycled . | . . . Recycled Matter . | . . . Retrieved Matter . | . . . Retrieved Components . | . . . Parts Scanalyzed . | . . . Part Schematics Acquired . | . . . Parts Damaged . | . . . Bothacking | -11 -10 -9 ------------ Run | Scr Mat Mat Used RIF Installer . | . . . Robots Hacked . | . . . Non-combat . | . . . Combat . | . . . Robot Hacks Applied . | . . . Relay Couplers Released . | . . . Robots Rewired . | . . . Allies Hacked . | . . . Hacks Repelled . | . . . Allies | -11 -10 -9 -------- Run | Scr Mat Mat Total Allies . | . . . Largest Group . | . . . Highest-Rated Group . | . . . Highest-Rated Ally . | . . . Total Orders . | . . . Ally Attacks . | . . . Total Damage . | . . . Kills . | . . . Allies Corrupted . | . . . Allies Melted . | . . . Intel | -11 -10 -9 ------- Run | Scr Mat Mat Robot Analysis Total . | . . . Derelict Logs Recovered . | . . . Drone Launches . | . . . Drone Recoveries . | . . . Exploration | -11 -10 -9 ------------- Run | Scr Mat Mat Turns Passed 972 | 116 254 602 Spaces Moved 594 | 73 167 354 Core 22 | 22 . . Treads . | . . . Legs 572 | 51 167 354 Wheels . | . . . Hover . | . . . Flight . | . . . Fastest Speed 50 | 50 120 120 Average Speed 122 | 140 120 120 Slowest Speed 300 | 300 120 120 Overloaded Moves . | . . . Propulsion Burnouts . | . . . Robots Hopped . | . . . Cave-ins Triggered . | . . . Exploration Rate (%) 29 | 5 39 45 Regions Visited 2 Branch Regions . Pre-discovered Areas . | . . . Known Exits Taken 2 | 1 1 . Unknown Exits Taken . | . . . Scrap Searched . | . . . Spaces Dug . | . . . Terrain Destroyed . | . . . Melee . | . . . Projectile . | . . . AOE . | . . . Terrain Rammed . | . . . Walls Destroyed . | . . . Machines Disabled . | . . . Actions | -11 -10 -9 --------- Run | Scr Mat Mat Total 757 | 82 196 479 Wait 93 | . 13 80 Move 592 | 72 166 354 Hop . | . . . Pick Up 5 | 2 1 2 Fast Attach 14 | 7 2 5 Attach 1 | . . 1 Detach 2 | . . 2 Swap 2 | 1 . 1 Drop 3 | . 1 2 Fire 45 | . 13 32 Melee . | . . . Ram . | . . . Kick . | . . . Crush . | . . . Escape Stasis . | . . . Rewire . | . . . Trap . | . . . Miscellaneous . | . . . Route ------- -11/Scrapyard -10/Materials (discovered 3 exits: *Mat / Min x2) -9/Materials (discovered 1 exit: *Mat) History --------- Turn | Location | Event 27 | -11/Scrapyard | Identified exit to Materials 27 | -11/Scrapyard | Discovered exit to Materials (range 16) 117 | -11/Scrapyard | Entered Materials 117 | -10/Materials | Evolved 1 slot: Utility x1 217 | -10/Materials | Identified exit to Mines 309 | -10/Materials | Identified exit to Materials 309 | -10/Materials | Discovered exit to Materials (range 16) 314 | -10/Materials | Build established: Hacker-Mutant 371 | -10/Materials | Entered another Materials area 371 | -9/Materials | Evolved 2 slots: Utility x2 819 | -9/Materials | Identified exit to Materials 819 | -9/Materials | Discovered exit to Materials (range 10) 973 | -9/Materials | Self-destructed Last Messages --------------- T-07 Excavator is excavating. U-05 Engineer lays Concrete. Connecting with Terminal... ALERT: Suspicious activity at Terminal M004. Dispatching Investigation squad. K-01 Serf cleans the Integration Channel. K-01 Serf cleans the Terminal. W-16 Scout distress signal alerts nearby ally. U-05 Engineer lays Concrete. K-01 Serf cleans the Integration Channel. ALERT: Hostiles spotted, dispatching reinforcements to Terminal M011. Lgt. Armor Plating destroyed. G-47 Trooper destroyed. K-01 Serf collects debris. G-34 Mercenary destroyed. R-06 Scavenger collects Lgt. Nuclear Core. Lgt. Ion Engine destroyed. G-34 Mercenary destroyed. R-06 Scavenger collects Particle Gun. R-06 Scavenger collects Aluminum Leg. R-06 Scavenger collects Imp. Heat Sink. Map ----- +----------------------------------------------------+ | ### #?# # ##############??????????????? | | ??# #?# # #???????????????????????????? | | ??# #?# # #??######???????????????????? | | ??# #?# # #?? ] #???????????????????? | | ??# #?# # #? #???????????????????? | | ??# #?# # #? #???????????????????? | | ??# #?########## # #???????????????????? | | ??# #???######## # #???????????????????? | | ?? # + / #???????????????????? | | ?? # """ ##### # #???????????????????? | | ?? #??????????### # #???????????????????? | | ?? +????????????# #? #???????????????????? | | ?? #????????????# #? #???????????????????? | | ?? #????????????# #?? #???????????????????? | | ??? ?????????????# #??######???????????????????? | | ???????????????????#a#???????????????????????????? | | ???????????????????# #???????????????????????????? | | ???????????????????# ####????????????????????????? | | ???????????????????# #????????????????????????? | | ???????????????????#### #????????????????????????? | | ?????a????????????????# #????????????????????????? | | ??????????????????????# #????????????????????????? | | ??????????????????????# #????????????????????????? | | ??????????????????????# ##############???????????? | | ??????????????????????#rYr% #???????????? | | ??????????????????????# #@ #???????????? | | ??????????????????????# #[ g #???????????? | | ??????????????????????# # !g ! +???????????? | | ??????????a???????????# # =%g #???????????? | | ??????????????????????#+#########+####???????????? | | ?????????????????????????????????????????????????? | | ?????????????????????????????????????????????????? | | ?????????????????????????????????????????????????? | | ?????????????????????????????????????????????????? | | ?????????????????????????????????????????????????? | | ???????????????????????????????????????a?????????? | | ?????????????????????????????????????????????????? | | ?????????????????????????????????????????????????? | | ?????????????????????????????????????????????????? | | ?????????????????????????????????????????????????? | | ?????????????????????????????????????????????????? | | ?????????????????????????????????????????????????? | | ?????????????????????????????????????????????????? | | | | | | | | | | | | | | | +----------------------------------------------------+ Best States ------------- Heat Dissipation 28 Energy Generation 10 Energy Capacity 250 Matter Stores 300 Matter Capacity 300 Sight Range 18 Terrain Scan Density 10 Armor Coverage 150 Resistance: KI 35 Resistance: TH 35 Resistance: EX 35 Resistance: EM 35 Resistance: I 35 Resistance: S 35 Resistance: P 35 Utility Shielding 33 Evasion (%) 40 Offensive Hacking 20 Item Schematics ----------------- None Robot Schematics ------------------ None Fabricated ------------ Nothing Alien Tech Used ----------------- None Achievements -------------- None Challenges ------------ None Game ------ Seed MissileReactiveClaws Manual? 0 Play Time 00:10:55 Cumulative 78.6 hours Start 2021.10.22 @ 20:20:20 End 2021.10.22 @ 20:41:39 Sessions 3 Manual Loads 0 Difficulty Explorer Special Mode None Game No. 205 Rogue 163 Adventurer 38 Explorer 4 Win Type - Total 2 Types 2/0/0/0/0/0/0/0/0 Lore% 52 Gallery% 72 Achievement% 33 Wizard Run 0 Options --------- ASCII 0 Keyboard 0 Movement Numpad Keybinds 0 Fullscreen 1 Font 14/TerminusBold Map View 84x54 Tactical HUD 0 Map Filters NONE Filters NONE Steam 1 RUN: 5e38abbf-9a17-4364-9414-615ace3e0371